Cogmind - Beta 9.6 @@@ ROGUE MODE // 2020.08.13 @ 13:38:28 Player: Plexion Result: Destroyed by S-10 Pest with Light Assault Rifle Performance ------------- Evolutions (0) 0 Regions Visited (2) 400 Robots Destroyed (27) 135 Value Destroyed (490) 490 Prototype IDs (2) 40 Alien Tech Used (0) 0 Bonus (0) 0 TOTAL SCORE: 1065 Bonus ------- None Cogmind --------- Core Integrity 0/250 Matter 266/300 Energy 91/100 System Corruption 1% Temperature Cool (0) Movement Rolling (120) Ox2 Location -10/Mines Parts ------- > --- POWER (1) -------- (None) > --- PROPULSION (2) --- Compact Wheel > --- UTILITY (2) ------ Large Storage Unit Large Storage Unit > --- WEAPON (2) ------- Improved Light Cannon > --- INVENTORY (16) --- Light Ion Engine Large Storage Unit Improved Sensor Array Improved Sensor Array Improved Signal Interpreter Light Assault Rifle Improved Light Cannon Improved Light Cannon Grenade Launcher Mining Laser Peak State ------------ > --- POWER ------------ Ion Engine > --- PROPULSION ------- Compact Wheel Compact Wheel > --- UTILITY ---------- Small Storage Unit Small Storage Unit > --- WEAPON ----------- Improved Light Cannon Improved Light Cannon > --- INVENTORY -------- Ion Engine Wheel Wheel Improved Sensor Array Improved Sensor Array Improved Signal Interpreter EM Pulse Gun Small Laser [Rating: 10] Favorites ----------- Power Ion Engine Engine Ion Engine Propulsion Compact Wheel Wheel Compact Wheel Utility Large Storage Unit Device Improved Sensor Array Storage Large Storage Unit Weapon Improved Light Cannon Energy Gun EM Pulse Gun Ballistic Gun Light Assault Rifle Ballistic Cannon Improved Light Cannon Launcher Grenade Launcher Build | -11 -10 -10 ------- Run | Scr Mat Min Slots Evolved . | . . . Power . | . . . Propulsion . | . . . Utility . | . . . Weapon . | . . . Parts Attached 22 | 5 9 8 Power 2 | . 2 . Engine 2 | . 2 . Core . | . . . Reactor . | . . . Propulsion 8 | 2 . 6 Treads . | . . . Leg . | . . . Wheel 8 | 2 . 6 Hover . | . . . Flight . | . . . Utility 5 | 1 4 . Device 1 | . 1 . Storage 4 | 1 3 . Processor . | . . . Hackware . | . . . Protection . | . . . Artifact . | . . . Weapon 7 | 2 3 2 Energy Gun 2 | 1 1 . Energy Cannon . | . . . Ballistic Gun 1 | 1 . . Ballistic Cannon 3 | . 2 1 Launcher 1 | . . 1 Special Weapon . | . . . Impact Weapon . | . . . Slashing Weapon . | . . . Piercing Weapon . | . . . Special Melee Weapon . | . . . Unidentified Prototypes . | . . . Parts Lost 10 | . 2 8 Power 2 | . 1 1 Propulsion 6 | . . 6 Utility . | . . . Weapon 2 | . 1 1 Highest Loss Streak 4 | . 1 4 Average Slot Usage (%) 94 | . 96 89 Engine 13 | . 13 13 Wheel 25 | . 28 19 Device 1 | . 1 . Storage 25 | . 24 28 Energy Gun 4 | . 5 . Ballistic Gun 2 | . 3 . Ballistic Cannon 20 | . 18 26 Naked Turns . | . . . Heaviest Build 45 | 7 45 45 Greatest Support 32 | 32 32 32 Greatest Overweight (x) 4 | . 1 4 Average Overweight (x) 1 | . . 2 Largest Inventory Capacity 16 | 6 16 16 Average Capacity 11 | 5 10 16 Most Carried 12 | 5 12 12 Average Carried 8 | 2 8 10 Final Capacity 16 | 6 16 16 Final Carried 12 | 5 12 10 Class Distribution -------------------- 100% | Mutant Dominant Class ---------------- Mutant | -10/Materials Mutant | -10/Mines Resources | -11 -10 -10 ----------- Run | Scr Mat Min Matter Collected 673 | 262 221 190 Remotely . | . . . Salvage Created 504 | 60 248 196 Parts 41 | 5 28 8 Haulers Intercepted . | . . . Recyclers Shooed 1 | . . 1 Parts Field Recycled . | . . . Retrieved Matter . | . . . Parts Self-Destructed . | . . . Prevented . | . . . Kills | -11 -10 -10 ------- Run | Scr Mat Min Combat Hostiles Destroyed 23 | . 13 10 Guns 4 | . 4 . Cannons 13 | . 8 5 AOE 6 | . 1 5 Classes Destroyed 6 | 1 3 2 Builder 1 | . 1 . Tunneler 3 | 2 . 1 Swarmer 9 | . 9 . Grunt 8 | . 4 4 Demolisher 1 | . . 1 Assembled 5 | . . 5 Best Kill Streak 6 | 1 5 6 Combat Bots Only 6 | . 5 6 Max Kills in Single Turn 3 | 1 1 3 Gunslinging . | . . . Exploded 3 | . 1 3 Melee . | . . . Uniques/NPCs Destroyed . | . . . Combat | -11 -10 -10 -------- Run | Scr Mat Min Damage Taken 1048 | . 386 662 Core 254 | . 47 207 Absorbed by Shields . | . . . Core Remaining (%) 100 | 100 . . Volleys Fired 68 | 12 32 24 Largest 2 | 2 2 2 Hottest 78 | 60 78 78 Shots Fired 131 | 24 64 43 Gun 58 | 24 34 . Cannon 71 | . 30 41 Launcher 2 | . . 2 Special . | . . . Kinetic 100 | 12 47 41 Thermal . | . . . Explosive 2 | . . 2 Electromagnetic 29 | 12 17 . Robot Hit Streak 15 | 3 15 10 Robot Miss Streak 5 | 2 5 3 Penetration Max . | . . . Secondary Targets . | . . . Shots Hit Robots 67 | 13 33 21 Core Hits 49 | 4 17 28 Critical Hits 1 | . 1 . Critical Kills 1 | . 1 . Critical Parts Destroyed . | . . . Melee Attacks . | . . . Impact . | . . . Slashing . | . . . Piercing . | . . . Sneak Attacks . | . . . Combat Hostiles . | . . . Follow-up Attacks . | . . . Damage Inflicted 1687 | 133 577 977 Guns 294 | 133 161 . Cannons 825 | . 316 509 Explosions 568 | . 100 468 Melee . | . . . Ramming . | . . . Kinetic 908 | 40 359 509 Thermal 100 | . 100 . Explosive 468 | . . 468 Electromagnetic 211 | 93 118 . Impact . | . . . Slashing . | . . . Piercing . | . . . Highest Corruption 1 | . . 1 Average Corruption 1 | . . 1 Corruption Purged . | . . . Overload Shots . | . . . Overflow Damage 38 | . 21 17 Projectiles 8 | . . 8 Explosions 30 | . 21 9 Melee . | . . . Knockbacks 9 | . 3 6 Impact . | . . . Kinetic 9 | . 3 6 Secondary . | . . . Self-Inflicted Damage 53 | . 27 26 Shots 2 | . 1 1 Rammed . | . . . Targets Rammed . | . . . Kicked . | . . . Crushed . | . . . Highest Temperature 122 | 20 122 96 Average Temperature 31 | 9 37 29 Received Heat Transfer 163 | . 69 94 Siege Activations . | . . . Robots Corrupted . | . . . Combat Hostiles . | . . . Parts Fried . | . . . Impact Corruptions . | . . . Robots Melted . | . . . Combat Hostiles . | . . . Parts Melted . | . . . Heat Transferred 100 | . 100 . Parts Sabotaged . | . . . Parts Stolen . | . . . Parts Stripped . | . . . Power Chain Reactions 1 | . 1 . Missiles Intercepted . | . . . Alert | -11 -10 -10 ------- Run | Scr Mat Min Peak Influence 250 | 10 250 135 Average Influence 87 | 2 118 44 Maximum Alert Level 1 | . 1 . Low Security (%) 92 | 100 87 100 Level 1 7 | . 12 . Level 2 . | . . . Level 3 . | . . . Level 4 . | . . . Level 5 . | . . . High Security . | . . . Max Security . | . . . Squads Dispatched . | . . . Investigation . | . . . Extermination . | . . . Reinforcement . | . . . Assault . | . . . Garrison . | . . . Intercept . | . . . Construction Impeded . | . . . Haulers Reinforced . | . . . Stealth | -11 -10 -10 --------- Run | Scr Mat Min Distress Signals . | . . . Communications Jammed . | . . . Distress Signals . | . . . Times Spotted 45 | . 19 26 Peak Tracking Total 16 | . 6 16 Tactical Retreats 2 | . 1 1 Traps | -11 -10 -10 ------- Run | Scr Mat Min Traps Triggered 1 | . 1 . Indirectly . | . . . Trap Hack Attempts . | . . . Triggered . | . . . Disarmed . | . . . Reprogrammed . | . . . Reused . | . . . Traps Extracted . | . . . Installed . | . . . Triggered . | . . . Machines | -11 -10 -10 ---------- Run | Scr Mat Min Machines Disabled 1 | . 1 . Max in Single Turn 1 | . 1 . Machines Sabotaged . | . . . Garrisons Compromised . | . . . Overloaded Fab Kills . | . . . Fab Network Shutdowns . | . . . Hacking | -11 -10 -10 --------- Run | Scr Mat Min Machines Accessed 4 | . 4 . Terminals 4 | . 4 . Fabricators . | . . . Repair Stations . | . . . Recycling Units . | . . . Scanalyzers . | . . . Garrison Access . | . . . Total Hacks 13 | . 13 . Successful 8 | . 8 . Failed 5 | . 5 . Catastrophic 2 | . 2 . Database Lockouts . | . . . Manual 9 | . 9 . Terminals 13 | . 13 . Fabricators . | . . . Repair Stations . | . . . Recycling Units . | . . . Scanalyzers . | . . . Garrison Access . | . . . Terminal Hacks 6 | . 6 . Prototype ID Bank 1 | . 1 . Unreport Threat 1 | . 1 . Locate Traps 1 | . 1 . Recall Investigation 1 | . 1 . Zone Layout 2 | . 2 . Fabricator Hacks . | . . . Repair Station Hacks . | . . . Recycling Unit Hacks . | . . . Scanalyzer . | . . . Garrison Access Hacks . | . . . Unauthorized Hacks 2 | . 2 . Terminals 2 | . 2 . Botnet 2 | . 2 . Fabricators . | . . . Repair Stations . | . . . Recycling Units . | . . . Scanalyzers . | . . . Garrison Access . | . . . Data Cores Recovered . | . . . Used . | . . . Hacking Detections 4 | . 4 . Full Trace Events 1 | . 1 . Feedback Events . | . . . Feedback Blocked . | . . . Robot Schematics Acquired . | . . . Robots Built . | . . . Matter . | . . . Time . | . . . Total Robot Build Rating . | . . . Part Schematics Acquired . | . . . Parts Built . | . . . Matter . | . . . Time . | . . . Total Part Build Rating . | . . . Parts Repaired . | . . . Time . | . . . Parts Recycled . | . . . Recycled Matter . | . . . Retrieved Matter . | . . . Retrieved Components . | . . . Parts Scanalyzed . | . . . Part Schematics Acquired . | . . . Parts Damaged . | . . . Bothacking | -11 -10 -10 ------------ Run | Scr Mat Min Used RIF Installer . | . . . Robots Hacked . | . . . Non-combat . | . . . Combat . | . . . Robot Hacks Applied . | . . . Relay Couplers Released . | . . . Robots Rewired . | . . . Allies Hacked . | . . . Hacks Repelled . | . . . Allies | -11 -10 -10 -------- Run | Scr Mat Min Total Allies . | . . . Largest Group . | . . . Highest-Rated Group . | . . . Highest-Rated Ally . | . . . Total Orders . | . . . Ally Attacks . | . . . Total Damage . | . . . Kills . | . . . Allies Corrupted . | . . . Allies Melted . | . . . Intel | -11 -10 -10 ------- Run | Scr Mat Min Robot Analysis Total . | . . . Derelict Logs Recovered 2 | . . 2 Drone Launches . | . . . Drone Recoveries . | . . . Exploration | -11 -10 -10 ------------- Run | Scr Mat Min Turns Passed 1193 | 119 762 312 Spaces Moved 848 | 72 573 203 Core 1 | 1 . . Treads . | . . . Legs . | . . . Wheels 847 | 71 573 203 Hover . | . . . Flight . | . . . Fastest Speed 50 | 50 100 100 Average Speed 107 | 99 105 114 Slowest Speed 120 | 100 110 120 Overloaded Moves . | . . . Propulsion Burnouts . | . . . Robots Hopped . | . . . Cave-ins Triggered . | . . . Exploration Rate (%) 38 | 4 76 36 Regions Visited 2 Branch Regions 1 Pre-discovered Areas . | . . . Known Exits Taken . | . . . Unknown Exits Taken 2 | 1 1 . Scrap Searched . | . . . Spaces Dug . | . . . Terrain Destroyed 25 | . 5 20 Melee . | . . . Projectile 5 | . 3 2 AOE 20 | . 2 18 Actions | -11 -10 -10 --------- Run | Scr Mat Min Total 1005 | 95 672 238 Wait 47 | 2 43 2 Move 846 | 71 572 203 Hop . | . . . Pick Up 15 | 5 9 1 Fast Attach 10 | 5 4 1 Attach 7 | . 3 4 Detach 3 | . 3 . Swap 5 | . 2 3 Drop 4 | . 4 . Fire 68 | 12 32 24 Melee . | . . . Ram . | . . . Kick . | . . . Crush . | . . . Escape Stasis . | . . . Rewire . | . . . Trap . | . . . Miscellaneous . | . . . Route ------- -11/Scrapyard -10/Materials (discovered 3 exits: [*Mat x2] / [*Min]) -10/Mines (discovered 1 exit: [*Mat]) History --------- Turn | Location | Event 14 | -11/Scrapyard | Discovered new exit (range 15) 120 | -11/Scrapyard | Entered Materials 303 | -10/Materials | Build established: Mutant 351 | -10/Materials | Discovered new exit (range 7) 596 | -10/Materials | Discovered new exit (range 7) 627 | -10/Materials | Discovered new exit (range 15) 882 | -10/Materials | Entered Mines 893 | -10/Mines | Met a Derelict bent on vengeance 893 | -10/Mines | Learned Materials security intel 914 | -10/Mines | Assembled infested the area 919 | -10/Mines | Assisted by a Guerilla fighting off Assembled 962 | -10/Mines | Core integrity fell below 50% 994 | -10/Mines | Lost 4 parts (4n) 1124 | -10/Mines | Learned location of 1 exit from Materials 1178 | -10/Mines | Discovered new exit (range 10) 1184 | -10/Mines | Core integrity fell below 20% 1194 | -10/Mines | Destroyed by S-10 Pest with Light Assault Rifle Last Messages --------------- 01137_ K-01 Serf destroyed. 01137_ G-34 Mercenary destroyed. 01140_ G-47 Trooper knocked back. 01143_ G-47 Trooper destroyed. 01148_ T-07 Excavator destroyed. 01151_ Acquired 18 matter. 01154_ Acquired Com. Wheel. 01161_ Acquired 26 matter. 01168_ Acquired 37 matter. 01169_ Acquired 43 matter. 01178_ EXIT=FOUND 01182_ as-34129 sneak attacks. 01182_ T-07 Excavator system corrupted by crushing effect. 01182_ T-07 Excavator knocked back. 01183_ Ion Engine destroyed. 01187_ Imp. Light Cannon destroyed. 01190_ Wheel destroyed. 01190_ System corrupted by crushing effect (+1). 01192_ Wheel destroyed. 01194_ as-34129 knocked back. Map ----- +----------------------------------------------------+ | | | | | | | | | | | | | | | | | | | | | | | | | | | | | | | | | | | | | ?????????????????????????????????????????????? | | ?????????????????????????????????????????????? | | ???????#####?????????????????????????????????? | | ??????? ?????????????????????????? ??### | | ????????? ???????????????????????? ? " | | ??????????" """ #####???####??????????? ##% | | ??????????" """ ss s #??## ##?????????? # | | ??????????" """ ##;@#### * ##?????????? | | ????????? ???##[ ! = ! ##????????? | | ??????? ""??????# ta ! ##????????? % | | ??????" < ????????#### ### %######??# # | | ???????????????????????# #?##!= #???## | | ???????????????????????# #??## ! ### #??## | | ??????????????????????? #???# ! #?# #### | | ???????????????????????###???# #?# | | ?????????????????????????????## ##?# | | ??????????????????????????????# ##?????# | | ??????????????????????????????# #?????## | | ??????????????????????????????# #?????# | | ??????????????????????????????# ####### | | ??????????????????????????????# ### | | ??????????????????????????????###### #?## | | ???????????????????????????????????# #??###### | | ???????????????????????????????????# #???????# | | ???????????????????????????????????# #????#### | | ???????????????????????????????????# #????# | | ???????????????????????????????????# #????# ## | | ???????????????????????????????????# #????# #? | | ???????????????????????????###?????# #????# #? | | ??????????????????????????## ##???# #????# #? | | ??????????????????????????# ##??# #????# #? | | ??????????????????????????# #### ###### #? | +----------------------------------------------------+ Best States ------------- Heat Dissipation 25 Energy Generation 10 Energy Capacity 250 Matter Stores 300 Matter Capacity 300 Sight Range 16 Robot Scan Range 13 Terrain Scan Density 10 Evasion (%) 40 Item Schematics ----------------- None Robot Schematics ------------------ None Fabricated ------------ Nothing Alien Tech Used ----------------- None Achievements -------------- None Challenges ------------ None Game ------ Seed ImpactDimensionalManipulator Manual? 0 Play Time 00:12:25 Cumulative 94.4 hours Start 2020.08.13 @ 13:28:51 End 2020.08.13 @ 13:38:28 Sessions 1 Manual Loads 0 Difficulty Rogue Special Mode None Game No. 106 Rogue 19 Adventurer 87 Explorer 0 Win Type - Total 3 Types 2/0/0/1/0/0/0 Lore% 47 Gallery% 62 Achievement% 53 Wizard Run 0 Options --------- ASCII 0 Keyboard 1 Movement Numpad Keybinds 0 Fullscreen 1 Font 18/Smallcaps Map View 76x50 Tactical HUD 1 Map Filters NONE Filters NONE Steam 1 RUN: 5e522fd0-363f-4e82-9b6f-044bad5b143e